[Event "*** Titled Tuesday Blitz"]
[Site "Chess.com"]
[Date "2020.05.19"]
[Round "1"]
[White "Sparklechess"]
[Black "DivyaDeshmukh23"]
[Result "1/2-1/2"]
[WhiteElo "1764"]
[BlackElo "2457"]
[TimeControl "180+1"]
[EndTime "12:09:04 PDT"]
[Termination "Game drawn - timeout vs insufficient material"]

1. d4 {[%clk 0:03:00.9]} 1... Nf6 {[%clk 0:02:59.1]} 2. c4 {[%clk 0:03:00.1]}
2... e6 {[%clk 0:02:57.7]} 3. Nc3 {[%clk 0:02:59.4]} 3... Bb4 {[%clk 0:02:55.8]}
4. e3 {[%clk 0:02:56.9]} 4... d5 {[%clk 0:02:55]} 5. a3 {[%clk 0:02:55.9]} 5...
Bxc3+ {[%clk 0:02:54.1]} 6. bxc3 {[%clk 0:02:55.6]} 6... O-O {[%clk 0:02:54.2]}
7. cxd5 {[%clk 0:02:52.3]} 7... exd5 {[%clk 0:02:53.8]} 8. Bd3 {[%clk
0:02:49.8]} 8... c5 {[%clk 0:02:53.1]} 9. Ne2 {[%clk 0:02:43]} 9... Nc6 {[%clk
0:02:52.1]} 10. f3 {[%clk 0:02:40.4]} 10... Be6 {[%clk 0:02:47.5]} 11. O-O
{[%clk 0:02:38.8]} 11... Qd7 {[%clk 0:02:42.8]} 12. Bc2 {[%clk 0:02:22.3]} 12...
Bf5 {[%clk 0:02:35.1]} 13. Ng3 {[%clk 0:01:43.2]} 13... Bxc2 {[%clk 0:02:30.2]}
14. Qxc2 {[%clk 0:01:44.1]} 14... Rac8 {[%clk 0:02:28.3]} 15. Qd3 {[%clk
0:01:39.8]} 15... Rfe8 {[%clk 0:02:25]} 16. Bb2 {[%clk 0:01:36.4]} 16... Na5
{[%clk 0:02:21.4]} 17. Rad1 {[%clk 0:01:17.4]} 17... Nc4 {[%clk 0:02:19.3]} 18.
Bc1 {[%clk 0:01:17.2]} 18... cxd4 {[%clk 0:01:51.4]} 19. cxd4 {[%clk 0:00:49.8]}
19... Rc6 {[%clk 0:01:33.9]} 20. e4 {[%clk 0:00:46]} 20... Rec8 {[%clk 0:00:57]}
21. e5 {[%clk 0:00:34.7]} 21... Ne8 {[%clk 0:00:54.7]} 22. f4 {[%clk 0:00:28.8]}
22... Nc7 {[%clk 0:00:52.7]} 23. f5 {[%clk 0:00:27.2]} 23... f6 {[%clk
0:00:48.9]} 24. exf6 {[%clk 0:00:21.4]} 24... Rxf6 {[%clk 0:00:49.7]} 25. Bg5
{[%clk 0:00:21]} 25... Rf7 {[%clk 0:00:49.5]} 26. f6 {[%clk 0:00:20.5]} 26... g6
{[%clk 0:00:49.7]} 27. h4 {[%clk 0:00:17.2]} 27... Ne6 {[%clk 0:00:50.6]} 28.
Bh6 {[%clk 0:00:12.5]} 28... Qd6 {[%clk 0:00:49.2]} 29. h5 {[%clk 0:00:12.8]}
29... g5 {[%clk 0:00:41.7]} 30. Nf5 {[%clk 0:00:11.7]} 30... Qxa3 {[%clk
0:00:40.4]} 31. Ne7+ {[%clk 0:00:11.4]} 31... Rxe7 {[%clk 0:00:38.7]} 32. fxe7
{[%clk 0:00:11.2]} 32... Qxe7 {[%clk 0:00:39.6]} 33. Qf5 {[%clk 0:00:11.2]}
33... Ne3 {[%clk 0:00:36.3]} 34. Qe5 {[%clk 0:00:09.5]} 34... Nxd1 {[%clk
0:00:35.5]} 35. Rxd1 {[%clk 0:00:08.6]} 35... Rc6 {[%clk 0:00:12.7]} 36. Bxg5
{[%clk 0:00:07.3]} 36... Qxg5 {[%clk 0:00:11.7]} 37. Re1 {[%clk 0:00:07.9]}
37... Qxe5 {[%clk 0:00:10.9]} 38. Rxe5 {[%clk 0:00:08]} 38... Nxd4 {[%clk
0:00:09.1]} 39. Re8+ {[%clk 0:00:07.4]} 39... Kf7 {[%clk 0:00:08.9]} 40. Rd8
{[%clk 0:00:07.5]} 40... Rc7 {[%clk 0:00:08.8]} 41. Rxd5 {[%clk 0:00:07.3]}
41... Ne6 {[%clk 0:00:09]} 42. Ra5 {[%clk 0:00:07.2]} 42... b6 {[%clk
0:00:07.4]} 43. Ra6 {[%clk 0:00:06.1]} 43... Nc5 {[%clk 0:00:07]} 44. Ra3 {[%clk
0:00:06.6]} 44... Kg7 {[%clk 0:00:04.1]} 45. Kf2 {[%clk 0:00:07.5]} 45... Kh6
{[%clk 0:00:03.6]} 46. Rh3 {[%clk 0:00:08.1]} 46... Kg5 {[%clk 0:00:03.6]} 47.
Kf3 {[%clk 0:00:06.6]} 47... Rf7+ {[%clk 0:00:03.7]} 48. Ke3 {[%clk 0:00:05.8]}
48... a5 {[%clk 0:00:04.6]} 49. Kd2 {[%clk 0:00:06]} 49... Kg4 {[%clk
0:00:04.5]} 50. Ra3 {[%clk 0:00:05]} 50... Rf2+ {[%clk 0:00:04.2]} 51. Ke3
{[%clk 0:00:04.5]} 51... Rxg2 {[%clk 0:00:05.1]} 52. Kd4 {[%clk 0:00:04.3]}
52... Rd2+ {[%clk 0:00:04.8]} 53. Ke5 {[%clk 0:00:04.2]} 53... Rb2 {[%clk
0:00:05.6]} 54. Kf6 {[%clk 0:00:04.4]} 54... Rb4 {[%clk 0:00:04.5]} 55. Kg7
{[%clk 0:00:04.1]} 55... Kxh5 {[%clk 0:00:05.4]} 56. Kxh7 {[%clk 0:00:03.9]}
56... Kg4 {[%clk 0:00:05.7]} 57. Kg7 {[%clk 0:00:04.1]} 57... a4 {[%clk
0:00:06.3]} 58. Kf7 {[%clk 0:00:03.9]} 58... Rb3 {[%clk 0:00:06.3]} 59. Ra2
{[%clk 0:00:04.1]} 59... a3 {[%clk 0:00:07.2]} 60. Ke7 {[%clk 0:00:04.2]} 60...
Rb2 {[%clk 0:00:06.8]} 61. Rxa3 {[%clk 0:00:03.2]} 61... Rd2 {[%clk 0:00:06.4]}
62. Ra7 {[%clk 0:00:01.7]} 62... Rd7+ {[%clk 0:00:05.2]} 63. Kf6 {[%clk
0:00:02.6]} 63... Rxa7 {[%clk 0:00:03.2]} 64. Ke5 {[%clk 0:00:03.5]} 1/2-1/2

[Event "*** Titled Tuesday Blitz"]
[Site "Chess.com"]
[Date "2020.05.19"]
[Round "1"]
[White "Vesper2018"]
[Black "FontVella8"]
[Result "0-1"]
[WhiteElo "2239"]
[BlackElo "2550"]
[TimeControl "180+1"]
[EndTime "12:09:05 PDT"]
[Termination "FontVella8 won by resignation"]

1. e4 {[%clk 0:02:58.1]} 1... c6 {[%clk 0:02:59.2]} 2. d4 {[%clk 0:02:57.2]}
2... d5 {[%clk 0:02:59.8]} 3. Nc3 {[%clk 0:02:57.5]} 3... dxe4 {[%clk 0:03:00]}
4. Nxe4 {[%clk 0:02:57.2]} 4... Nf6 {[%clk 0:03:00.7]} 5. Nxf6+ {[%clk
0:02:50.6]} 5... exf6 {[%clk 0:03:01.6]} 6. c3 {[%clk 0:02:46.4]} 6... Bd6
{[%clk 0:03:01.5]} 7. Bd3 {[%clk 0:02:46.3]} 7... Be6 {[%clk 0:02:59.5]} 8. Ne2
{[%clk 0:02:43.7]} 8... Qc7 {[%clk 0:02:59.6]} 9. Be3 {[%clk 0:02:39]} 9... Nd7
{[%clk 0:02:59.6]} 10. Qd2 {[%clk 0:02:38.4]} 10... O-O-O {[%clk 0:02:58.1]} 11.
O-O-O {[%clk 0:02:38.3]} 11... Bxa2 {[%clk 0:02:41.2]} 12. b4 {[%clk 0:02:24.8]}
12... Bb3 {[%clk 0:02:36.5]} 13. Rde1 {[%clk 0:02:22.2]} 13... Nb6 {[%clk
0:02:36.7]} 14. Qb2 {[%clk 0:01:54.3]} 14... Bc4 {[%clk 0:02:34.9]} 15. Bf5+
{[%clk 0:01:53.1]} 15... Kb8 {[%clk 0:02:31.8]} 16. Qa3 {[%clk 0:01:53.2]} 16...
g6 {[%clk 0:02:29.8]} 17. Bc2 {[%clk 0:01:51.9]} 17... Nd5 {[%clk 0:02:29]} 18.
Kb2 {[%clk 0:01:45.8]} 18... Rhe8 {[%clk 0:02:26]} 19. Nc1 {[%clk 0:01:41.2]}
19... a5 {[%clk 0:02:10.9]} 20. Qxa5 {[%clk 0:01:38.8]} 20... b6 {[%clk
0:02:11.4]} 21. Qa1 {[%clk 0:01:30.1]} 21... Kb7 {[%clk 0:02:11.3]} 22. Nb3
{[%clk 0:01:29.5]} 22... Ra8 {[%clk 0:02:10.8]} 23. Qc1 {[%clk 0:01:24]} 23...
f5 {[%clk 0:02:06.1]} 24. g3 {[%clk 0:01:22.1]} 24... Ra7 {[%clk 0:01:55]} 25.
Qd2 {[%clk 0:01:21.6]} 25... Rea8 {[%clk 0:00:59.6]} 26. Ra1 {[%clk 0:01:21.3]}
26... Qe7 {[%clk 0:00:52.8]} 27. Rxa7+ {[%clk 0:01:13.4]} 27... Rxa7 {[%clk
0:00:52.8]} 28. Ra1 {[%clk 0:01:13.4]} 28... Rxa1 {[%clk 0:00:36.1]} 29. Kxa1
{[%clk 0:01:13.3]} 29... h5 {[%clk 0:00:19.6]} 30. Kb2 {[%clk 0:01:10.1]} 30...
Qe6 {[%clk 0:00:18.3]} 31. Nc1 {[%clk 0:01:06]} 31... h4 {[%clk 0:00:16.8]} 32.
Bb3 {[%clk 0:01:02.1]} 32... Nf6 {[%clk 0:00:13.4]} 33. Bxc4 {[%clk 0:00:54.9]}
33... Qxc4 {[%clk 0:00:14.3]} 34. Qd3 {[%clk 0:00:50.3]} 34... b5 {[%clk
0:00:10.4]} 35. Qxc4 {[%clk 0:00:39.9]} 35... bxc4 {[%clk 0:00:11.3]} 36. Bg5
{[%clk 0:00:39.5]} 36... hxg3 {[%clk 0:00:10.1]} 37. fxg3 {[%clk 0:00:31.9]}
37... Ng4 {[%clk 0:00:08.6]} 38. h3 {[%clk 0:00:28.4]} 38... Nf2 {[%clk
0:00:08.5]} 39. Ne2 {[%clk 0:00:24.4]} 39... Nxh3 {[%clk 0:00:07.9]} 40. Bf6
{[%clk 0:00:24.8]} 40... Nf2 {[%clk 0:00:07.1]} 41. Kc2 {[%clk 0:00:18.4]} 41...
Ne4 {[%clk 0:00:07.3]} 42. Be5 {[%clk 0:00:18.2]} 42... f6 {[%clk 0:00:03.4]}
43. Bxd6 {[%clk 0:00:17.5]} 43... Nxd6 {[%clk 0:00:04.3]} 44. Nf4 {[%clk
0:00:17.8]} 44... g5 {[%clk 0:00:04.7]} 45. Nh5 {[%clk 0:00:17.6]} 45... Ne4
{[%clk 0:00:05]} 46. Kb2 {[%clk 0:00:16.1]} 46... Kc7 {[%clk 0:00:04.8]} 47. Kc2
{[%clk 0:00:15.9]} 47... Kd6 {[%clk 0:00:04.8]} 48. Kb2 {[%clk 0:00:16]} 48...
Ke7 {[%clk 0:00:05.3]} 49. Kc2 {[%clk 0:00:16.1]} 49... Kf7 {[%clk 0:00:05.6]}
50. d5 {[%clk 0:00:14.7]} 50... cxd5 {[%clk 0:00:05.5]} 51. b5 {[%clk
0:00:15.1]} 51... Kg6 {[%clk 0:00:05.9]} 52. g4 {[%clk 0:00:15]} 52... fxg4
{[%clk 0:00:05.4]} 53. b6 {[%clk 0:00:13.7]} 53... Nd6 {[%clk 0:00:05.4]} 54.
Ng3 {[%clk 0:00:13.1]} 54... f5 {[%clk 0:00:05.8]} 55. Ne2 {[%clk 0:00:08.7]}
55... f4 {[%clk 0:00:05.9]} 56. Nd4 {[%clk 0:00:08.5]} 56... g3 {[%clk 0:00:06]}
57. Kd2 {[%clk 0:00:08]} 57... g2 {[%clk 0:00:05]} 58. Nf3 {[%clk 0:00:08.2]}
58... g4 {[%clk 0:00:04.1]} 59. Nh4+ {[%clk 0:00:08.3]} 59... Kg5 {[%clk
0:00:04.2]} 60. Nxg2 {[%clk 0:00:08.9]} 60... g3 {[%clk 0:00:03.9]} 61. Ke2
{[%clk 0:00:08.4]} 61... Kg4 {[%clk 0:00:04.3]} 62. Ne1 {[%clk 0:00:08.5]} 62...
Nb7 {[%clk 0:00:03.3]} 63. Nf3 {[%clk 0:00:08.2]} 63... Nc5 {[%clk 0:00:03.5]}
64. Ne5+ {[%clk 0:00:08.2]} 64... Kh3 {[%clk 0:00:03.3]} 65. Kf3 {[%clk
0:00:08.4]} 65... g2 {[%clk 0:00:03.5]} 66. Kf2 {[%clk 0:00:08.8]} 66... Ne4+
{[%clk 0:00:02]} 67. Kg1 {[%clk 0:00:08.7]} 67... Nd6 {[%clk 0:00:02.7]} 68. Nf3
{[%clk 0:00:07.2]} 68... Kg3 {[%clk 0:00:02.8]} 69. Ne1 {[%clk 0:00:04.7]} 69...
f3 {[%clk 0:00:03.4]} 70. Nxg2 {[%clk 0:00:04.6]} 70... f2+ {[%clk 0:00:01.4]}
71. Kf1 {[%clk 0:00:04.7]} 71... Ne4 {[%clk 0:00:02.1]} 72. b7 {[%clk 0:00:03]}
72... Nd2+ {[%clk 0:00:01.9]} 73. Ke2 {[%clk 0:00:03.3]} 73... f1=Q+ {[%clk
0:00:02.4]} 74. Kxd2 {[%clk 0:00:03.9]} 74... Qxg2+ {[%clk 0:00:03]} 75. Ke3
{[%clk 0:00:04.3]} 75... Qf3+ {[%clk 0:00:03.3]} 76. Kd4 {[%clk 0:00:04.3]}
76... Qf4+ {[%clk 0:00:03.9]} 77. Kc5 {[%clk 0:00:04.1]} 77... Qb8 {[%clk
0:00:04.8]} 78. Kc6 {[%clk 0:00:03.9]} 78... Kf4 {[%clk 0:00:05.1]} 0-1

[Event "*** Titled Tuesday Blitz"]
[Site "Chess.com"]
[Date "2020.05.19"]
[Round "1"]
[White "Pedrada88"]
[Black "Lagmantr"]
[Result "0-1"]
[WhiteElo "2355"]
[BlackElo "2675"]
[TimeControl "180+1"]
[EndTime "12:09:07 PDT"]
[Termination "Lagmantr won on time"]

1. Nf3 {[%clk 0:03:00.8]} 1... d5 {[%clk 0:02:55.5]} 2. g3 {[%clk 0:03:01.1]}
2... Nf6 {[%clk 0:02:55.8]} 3. Bg2 {[%clk 0:03:01.6]} 3... g6 {[%clk 0:02:56.4]}
4. d4 {[%clk 0:02:59.5]} 4... Bg7 {[%clk 0:02:56.8]} 5. c4 {[%clk 0:02:59.9]}
5... O-O {[%clk 0:02:57.4]} 6. cxd5 {[%clk 0:02:59.7]} 6... Nxd5 {[%clk
0:02:57.8]} 7. O-O {[%clk 0:03:00.3]} 7... Nb6 {[%clk 0:02:56.8]} 8. Nc3 {[%clk
0:02:59.6]} 8... Nc6 {[%clk 0:02:55.4]} 9. d5 {[%clk 0:02:59.6]} 9... Bxc3
{[%clk 0:02:46.7]} 10. bxc3 {[%clk 0:02:56.1]} 10... Qxd5 {[%clk 0:02:39.2]} 11.
Nd4 {[%clk 0:02:45.1]} 11... Qc4 {[%clk 0:02:38.5]} 12. Nxc6 {[%clk 0:02:39.3]}
12... bxc6 {[%clk 0:02:39.4]} 13. Bh6 {[%clk 0:02:36.9]} 13... Re8 {[%clk
0:02:29.6]} 14. Qb3 {[%clk 0:02:29.7]} 14... Qxb3 {[%clk 0:02:13.3]} 15. axb3
{[%clk 0:02:30.6]} 15... Bb7 {[%clk 0:02:13.5]} 16. Rfd1 {[%clk 0:02:26.7]}
16... a6 {[%clk 0:02:01.8]} 17. c4 {[%clk 0:02:24.5]} 17... Red8 {[%clk
0:02:00.1]} 18. h4 {[%clk 0:02:21]} 18... f6 {[%clk 0:01:58.6]} 19. Be3 {[%clk
0:01:45]} 19... Kf7 {[%clk 0:01:52.3]} 20. f4 {[%clk 0:01:35]} 20... h5 {[%clk
0:01:21.4]} 21. Kf2 {[%clk 0:01:34.6]} 21... e6 {[%clk 0:01:21]} 22. Bf3 {[%clk
0:01:27.7]} 22... Rab8 {[%clk 0:00:35.4]} 23. Bd4 {[%clk 0:01:23.9]} 23... Nd7
{[%clk 0:00:31.3]} 24. Ba7 {[%clk 0:01:19.9]} 24... Ra8 {[%clk 0:00:30.3]} 25.
Bd4 {[%clk 0:01:20.4]} 25... Rdb8 {[%clk 0:00:27.9]} 26. Bc3 {[%clk 0:01:14.7]}
26... Ke8 {[%clk 0:00:27.3]} 27. Be4 {[%clk 0:01:11.9]} 27... f5 {[%clk
0:00:26.4]} 28. Bf3 {[%clk 0:01:11.5]} 28... c5 {[%clk 0:00:26.7]} 29. Ra3
{[%clk 0:00:59.2]} 29... Bxf3 {[%clk 0:00:26.1]} 30. Kxf3 {[%clk 0:00:57.4]}
30... Rb7 {[%clk 0:00:25.7]} 31. e3 {[%clk 0:00:50.6]} 31... Ke7 {[%clk
0:00:21]} 32. Be5 {[%clk 0:00:36.8]} 32... Nxe5+ {[%clk 0:00:20.5]} 33. fxe5
{[%clk 0:00:37.7]} 33... Rb6 {[%clk 0:00:20.8]} 34. Kf4 {[%clk 0:00:36.5]} 34...
Rab8 {[%clk 0:00:20.7]} 35. Rd3 {[%clk 0:00:36.1]} 35... Rd8 {[%clk 0:00:17.4]}
36. Rxd8 {[%clk 0:00:32.7]} 36... Kxd8 {[%clk 0:00:18.3]} 37. Kg5 {[%clk
0:00:33.1]} 37... Ke7 {[%clk 0:00:18.1]} 38. Kxg6 {[%clk 0:00:33.2]} 38... Rb8
{[%clk 0:00:18.5]} 39. Rxa6 {[%clk 0:00:29.8]} 39... Rg8+ {[%clk 0:00:19]} 40.
Kxh5 {[%clk 0:00:29.7]} 40... Rxg3 {[%clk 0:00:19.9]} 41. Rc6 {[%clk 0:00:28.4]}
41... Kd7 {[%clk 0:00:20]} 42. Rxc5 {[%clk 0:00:28.2]} 42... Rxe3 {[%clk
0:00:20.5]} 43. b4 {[%clk 0:00:27.4]} 43... Rb3 {[%clk 0:00:20.3]} 44. Kg5
{[%clk 0:00:25.1]} 44... Rxb4 {[%clk 0:00:19]} 45. h5 {[%clk 0:00:25.5]} 45...
Rb1 {[%clk 0:00:19.1]} 46. h6 {[%clk 0:00:25.3]} 46... Rg1+ {[%clk 0:00:18.6]}
47. Kf6 {[%clk 0:00:24.9]} 47... Rh1 {[%clk 0:00:18.8]} 48. Kg7 {[%clk
0:00:24.6]} 48... f4 {[%clk 0:00:19.2]} 49. Ra5 {[%clk 0:00:23.1]} 49... Kc6
{[%clk 0:00:17.3]} 50. Ra3 {[%clk 0:00:21]} 50... Rg1+ {[%clk 0:00:16.6]} 51.
Kf6 {[%clk 0:00:19.7]} 51... Rh1 {[%clk 0:00:17.5]} 52. Kg7 {[%clk 0:00:19.5]}
52... Rg1+ {[%clk 0:00:16.7]} 53. Kh8 {[%clk 0:00:16.4]} 53... Kc5 {[%clk
0:00:15.8]} 54. Rf3 {[%clk 0:00:16]} 54... Kxc4 {[%clk 0:00:15.6]} 55. Rxf4+
{[%clk 0:00:16.3]} 55... Kd5 {[%clk 0:00:16]} 56. Rf7 {[%clk 0:00:16.2]} 56...
c5 {[%clk 0:00:16]} 57. h7 {[%clk 0:00:14.7]} 57... Kxe5 {[%clk 0:00:15.1]} 58.
Rg7 {[%clk 0:00:14.6]} 58... Rh1 {[%clk 0:00:14.7]} 59. Kg8 {[%clk 0:00:15]}
59... c4 {[%clk 0:00:14]} 60. h8=Q {[%clk 0:00:14.2]} 60... Rxh8+ {[%clk
0:00:14.2]} 61. Kxh8 {[%clk 0:00:15.1]} 61... Kd4 {[%clk 0:00:14]} 62. Rc7
{[%clk 0:00:10.5]} 62... e5 {[%clk 0:00:13.2]} 63. Kg7 {[%clk 0:00:10.5]} 63...
e4 {[%clk 0:00:13.3]} 64. Kf6 {[%clk 0:00:10.8]} 64... e3 {[%clk 0:00:13.5]} 65.
Kf5 {[%clk 0:00:10.5]} 65... e2 {[%clk 0:00:12.9]} 66. Re7 {[%clk 0:00:10.3]}
66... Kd3 {[%clk 0:00:12.8]} 67. Kf4 {[%clk 0:00:06.5]} 67... Kd2 {[%clk
0:00:12.4]} 68. Rd7+ {[%clk 0:00:06.9]} 68... Kc2 {[%clk 0:00:10.8]} 69. Re7
{[%clk 0:00:07]} 69... Kd2 {[%clk 0:00:06.6]} 70. Rd7+ {[%clk 0:00:07.2]} 70...
Ke1 {[%clk 0:00:06.6]} 71. Ke3 {[%clk 0:00:04.2]} 71... c3 {[%clk 0:00:06.7]}
72. Rh7 {[%clk 0:00:03]} 72... Kd1 {[%clk 0:00:06]} 73. Rd7+ {[%clk 0:00:01.3]}
73... Ke1 {[%clk 0:00:03.6]} 0-1

[Event "*** Titled Tuesday Blitz"]
[Site "Chess.com"]
[Date "2020.05.19"]
[Round "1"]
[White "DanielDardha2005"]
[Black "Angel_Hranitel_37"]
[Result "0-1"]
[WhiteElo "2650"]
[BlackElo "2373"]
[TimeControl "180+1"]
[EndTime "12:09:07 PDT"]
[Termination "Angel_Hranitel_37 won by resignation"]

1. Nf3 {[%clk 0:02:56.3]} 1... Nf6 {[%clk 0:02:59.7]} 2. g3 {[%clk 0:02:54.5]}
2... g6 {[%clk 0:02:59.9]} 3. Bg2 {[%clk 0:02:54.4]} 3... Bg7 {[%clk 0:03:00.8]}
4. O-O {[%clk 0:02:54.9]} 4... O-O {[%clk 0:03:00.6]} 5. b3 {[%clk 0:02:55.1]}
5... d6 {[%clk 0:02:59.8]} 6. d4 {[%clk 0:02:55]} 6... Nbd7 {[%clk 0:02:56.8]}
7. Bb2 {[%clk 0:02:54.4]} 7... Re8 {[%clk 0:02:57.1]} 8. c4 {[%clk 0:02:50.1]}
8... c6 {[%clk 0:02:52.9]} 9. Nc3 {[%clk 0:02:49.6]} 9... Qc7 {[%clk 0:02:51.2]}
10. e4 {[%clk 0:02:49.2]} 10... e5 {[%clk 0:02:51.5]} 11. d5 {[%clk 0:02:49.4]}
11... Nc5 {[%clk 0:02:39.8]} 12. Ne1 {[%clk 0:02:46.3]} 12... a5 {[%clk
0:02:37.4]} 13. Nd3 {[%clk 0:02:45.4]} 13... Nfd7 {[%clk 0:02:25.9]} 14. a3
{[%clk 0:02:42.5]} 14... Nxd3 {[%clk 0:02:24.8]} 15. Qxd3 {[%clk 0:02:43.4]}
15... Nc5 {[%clk 0:02:24.9]} 16. Qc2 {[%clk 0:02:41.1]} 16... a4 {[%clk
0:02:19.4]} 17. b4 {[%clk 0:02:40]} 17... Nb3 {[%clk 0:02:19.3]} 18. Rad1 {[%clk
0:02:39.1]} 18... Nd4 {[%clk 0:02:19.6]} 19. Qd3 {[%clk 0:02:37]} 19... b6
{[%clk 0:01:57.5]} 20. dxc6 {[%clk 0:02:33.2]} 20... Qxc6 {[%clk 0:01:58.4]} 21.
Nd5 {[%clk 0:02:32.8]} 21... Bg4 {[%clk 0:01:53.1]} 22. f3 {[%clk 0:02:30.3]}
22... Be6 {[%clk 0:01:52.7]} 23. Rc1 {[%clk 0:02:21]} 23... Rac8 {[%clk
0:01:12.8]} 24. f4 {[%clk 0:02:14.3]} 24... Bxd5 {[%clk 0:01:08.8]} 25. cxd5
{[%clk 0:02:06.3]} 25... Qd7 {[%clk 0:01:08.9]} 26. f5 {[%clk 0:01:46.6]} 26...
Rxc1 {[%clk 0:00:57.4]} 27. Bxc1 {[%clk 0:01:47.5]} 27... Rc8 {[%clk 0:00:34]}
28. Be3 {[%clk 0:01:40.4]} 28... Qb5 {[%clk 0:00:27.8]} 29. Qxb5 {[%clk
0:01:19.9]} 29... Nxb5 {[%clk 0:00:28.7]} 30. f6 {[%clk 0:01:19.8]} 30... Rc3
{[%clk 0:00:25.7]} 31. Bxb6 {[%clk 0:01:05.3]} 31... Bh6 {[%clk 0:00:25.8]} 32.
Rd1 {[%clk 0:00:53.8]} 32... Nxa3 {[%clk 0:00:24.4]} 33. Ra1 {[%clk 0:00:53.5]}
33... Rc1+ {[%clk 0:00:18.6]} 34. Rxc1 {[%clk 0:00:52.3]} 34... Bxc1 {[%clk
0:00:19.5]} 35. Bf1 {[%clk 0:00:37.9]} 35... Nb1 {[%clk 0:00:13.9]} 36. Bc4
{[%clk 0:00:30]} 36... Nc3 {[%clk 0:00:11.9]} 37. Bc7 {[%clk 0:00:20.1]} 37...
a3 {[%clk 0:00:11.7]} 38. Bxd6 {[%clk 0:00:18.4]} 38... a2 {[%clk 0:00:11.8]}
39. Bxa2 {[%clk 0:00:18.2]} 39... Nxa2 {[%clk 0:00:12.7]} 40. b5 {[%clk
0:00:18.7]} 40... Nc3 {[%clk 0:00:11.3]} 41. Bxe5 {[%clk 0:00:17.1]} 41... Nxb5
{[%clk 0:00:11.7]} 42. Kf2 {[%clk 0:00:16.1]} 42... Ba3 {[%clk 0:00:10.5]} 43.
Kf3 {[%clk 0:00:15.5]} 43... Bc5 {[%clk 0:00:09.9]} 44. Bb2 {[%clk 0:00:13.4]}
44... Kf8 {[%clk 0:00:08.4]} 45. e5 {[%clk 0:00:12]} 45... Ke8 {[%clk
0:00:08.7]} 46. Ke4 {[%clk 0:00:12.2]} 46... Kd7 {[%clk 0:00:08.6]} 47. g4
{[%clk 0:00:10.8]} 47... Bb4 {[%clk 0:00:06.5]} 48. h3 {[%clk 0:00:08.6]} 48...
Ba5 {[%clk 0:00:06.3]} 49. Bc1 {[%clk 0:00:07.4]} 49... Bc3 {[%clk 0:00:05.9]}
50. Be3 {[%clk 0:00:06.3]} 50... Ba1 {[%clk 0:00:05.6]} 51. Bf2 {[%clk
0:00:04.8]} 51... Nc3+ {[%clk 0:00:05.4]} 52. Kf4 {[%clk 0:00:03.9]} 52... Nxd5+
{[%clk 0:00:05.4]} 53. Kg5 {[%clk 0:00:04.6]} 53... Bxe5 {[%clk 0:00:03.9]} 54.
Kh6 {[%clk 0:00:04.9]} 54... Nxf6 {[%clk 0:00:04.2]} 55. g5 {[%clk 0:00:05.2]}
55... Ne4 {[%clk 0:00:04]} 56. Be3 {[%clk 0:00:05.6]} 56... Ng3 {[%clk
0:00:03.8]} 57. Kxh7 {[%clk 0:00:05.4]} 57... Ke6 {[%clk 0:00:04.2]} 58. Bd2
{[%clk 0:00:03.6]} 58... Nf5 {[%clk 0:00:05.1]} 59. Bc1 {[%clk 0:00:03.7]} 59...
Bg3 {[%clk 0:00:05.4]} 60. Bd2 {[%clk 0:00:03.3]} 60... Bf2 {[%clk 0:00:05.9]}
61. Bc3 {[%clk 0:00:02.8]} 61... Be3 {[%clk 0:00:06.1]} 62. Bf6 {[%clk
0:00:03.4]} 62... Nh4 {[%clk 0:00:06]} 63. Kg8 {[%clk 0:00:02.9]} 63... Nf3
{[%clk 0:00:06.3]} 64. Bd8 {[%clk 0:00:02.2]} 64... Bxg5 {[%clk 0:00:06.4]} 65.
Ba5 {[%clk 0:00:02.6]} 65... Bf4 {[%clk 0:00:06.7]} 66. Bc3 {[%clk 0:00:02.2]}
66... Ng5 {[%clk 0:00:06.8]} 67. Bb4 {[%clk 0:00:02.8]} 67... Nxh3 {[%clk
0:00:07]} 68. Kg7 {[%clk 0:00:03.2]} 68... g5 {[%clk 0:00:07.4]} 69. Kh6 {[%clk
0:00:04.1]} 69... g4+ {[%clk 0:00:08]} 70. Kh5 {[%clk 0:00:05]} 70... g3 {[%clk
0:00:08.6]} 71. Kg4 {[%clk 0:00:05.1]} 71... g2 {[%clk 0:00:09.2]} 72. Bc5
{[%clk 0:00:05.5]} 72... g1=Q+ {[%clk 0:00:08.7]} 73. Bxg1 {[%clk 0:00:06]}
73... Nxg1 {[%clk 0:00:09.6]} 74. Kxf4 {[%clk 0:00:06.6]} 74... f5 {[%clk
0:00:10]} 75. Kg3 {[%clk 0:00:06.2]} 75... Ne2+ {[%clk 0:00:10.3]} 76. Kf3
{[%clk 0:00:06.3]} 76... Nc3 {[%clk 0:00:11.2]} 77. Ke3 {[%clk 0:00:06.7]} 77...
Nb5 {[%clk 0:00:12.1]} 78. Kf4 {[%clk 0:00:06.4]} 78... Nc7 {[%clk 0:00:12.8]}
79. Kf3 {[%clk 0:00:06.6]} 79... Ke5 {[%clk 0:00:13.3]} 80. Ke3 {[%clk
0:00:07.5]} 80... f4+ {[%clk 0:00:14.2]} 81. Kf3 {[%clk 0:00:08.2]} 81... Kf5
{[%clk 0:00:14.9]} 82. Kf2 {[%clk 0:00:09.1]} 82... Ke4 {[%clk 0:00:15.8]} 83.
Ke2 {[%clk 0:00:09.6]} 83... f3+ {[%clk 0:00:16.7]} 84. Kf2 {[%clk 0:00:10.5]}
84... Kf4 {[%clk 0:00:16.9]} 85. Kf1 {[%clk 0:00:11.4]} 85... Ke3 {[%clk
0:00:17.2]} 86. Ke1 {[%clk 0:00:12]} 86... f2+ {[%clk 0:00:17.5]} 87. Kf1 {[%clk
0:00:12.9]} 87... Nd5 {[%clk 0:00:18]} 0-1